fUSD/lending_fUSD_20240420
["ID","MTS","AMOUNT","RATE_DAILY","PERIOD"]
[323013704,1713588576089,-1112.05,0.00015068,2]
[323013705,1713588576110,-536.04,0.00015068,2]
[323013706,1713588576131,-500.0,0.00015068,2]
[323013707,1713588576154,-704.43,0.00015068,2]
[323013708,1713588576175,-500.0,0.00015068,2]
[323013709,1713588576196,-1624.22,0.00015068,2]
[323013710,1713588576218,-500.0,0.00015068,2]
[323013711,1713588576240,-500.0,0.00015068,2]
[323013712,1713588576261,-578.59386569,0.00015068,2]
[323013713,1713588576283,-823.85,0.00015068,2]
[323013714,1713588576305,-500.0,0.00015068,2]
[323013715,1713588576327,-553.13,0.00015068,2]
[323013716,1713588576350,-500.0,0.00015068,2]
[323013717,1713588576372,-504.26,0.00015068,2]
[323013718,1713588576393,-1562.8,0.00015068,2]
[323013719,1713588576415,-769.72,0.00015068,2]
[323013720,1713588576437,-1673.62,0.00015068,2]
[323013721,1713588576459,-500.0,0.00015068,2]
[323013722,1713588576483,-500.0,0.00015068,2]
[323013723,1713588576504,-500.0,0.00015068,2]
[323013724,1713588576528,-979.88,0.00015068,2]
[323013725,1713588576549,-1793.12,0.00015068,2]
[323013726,1713588576573,-500.0,0.00015068,2]
[323013727,1713588576598,-717.52,0.00015068,2]
[323013728,1713588576624,-503.35062921,0.00015068,2]
[323013729,1713588576646,-500.0,0.00015068,2]
[323013730,1713588576673,-500.0,0.00015068,2]
[323013731,1713588576696,-500.0,0.00015068,2]
[323013732,1713588576963,-833.72,0.00015068,2]
[323013733,1713588576993,-500.0,0.00015068,2]
[323013734,1713588577016,-500.0,0.00015068,2]
[323013735,1713588577041,-500.0,0.00015068,2]
[323013736,1713588577069,-500.0,0.00015068,2]
[323013737,1713588577094,-1027.38,0.00015068,2]
[323013738,1713588577117,-500.0,0.00015068,2]
[323013739,1713588577142,-500.0,0.00015068,2]
[323013740,1713588577163,-500.0,0.00015068,2]
[323013741,1713588577186,-500.0,0.00015068,2]
[323013742,1713588577209,-572.17,0.00015068,2]
[323013743,1713588577234,-500.0,0.00015068,2]
[323013744,1713588577258,-1202.55,0.00015068,2]
[323013745,1713588577283,-500.0,0.00015068,2]
[323013746,1713588577307,-899.24,0.00015068,2]
[323013747,1713588577333,-500.0,0.00015068,2]
[323013748,1713588577358,-681.76,0.00015068,2]
[323013749,1713588577380,-500.0,0.00015068,2]
[323013750,1713588577403,-500.0,0.00015068,2]
[323013751,1713588577426,-500.0,0.00015068,2]
[323013752,1713588577448,-500.0,0.00015068,2]
[323013753,1713588577471,-1858.19,0.00015068,2]
[323013754,1713588577494,-500.0,0.00015068,2]
[323013755,1713588577518,-536.26864434,0.00015068,2]
[323013756,1713588577540,-500.0,0.00015068,2]
[323013757,1713588577564,-500.0,0.00015068,2]
[323013758,1713588577585,-500.0,0.00015068,2]
[323013759,1713588577613,-1107.7,0.00015068,2]
[323013760,1713588577635,-1605.31,0.00015068,2]
[323013761,1713588577656,-500.0,0.00015068,2]
[323013762,1713588577677,-500.0,0.00015068,2]
[323013763,1713588577698,-1486.46,0.00015068,2]
[323013764,1713588577720,-539.78,0.00015068,2]
[323013765,1713588577749,-1511.87,0.00015068,2]
[323013766,1713588577773,-500.0,0.00015068,2]
[323013767,1713588577796,-654.92,0.00015068,2]
[323013768,1713588577818,-622.89,0.00015068,2]
[323013769,1713588577841,-500.0,0.00015068,2]
[323013770,1713588577866,-500.0,0.00015068,2]
[323013771,1713588577889,-577.97,0.00015068,2]
[323013772,1713588577913,-702.22,0.00015068,2]
[323013773,1713588577937,-500.0,0.00015068,2]
[323013774,1713588577961,-500.0,0.00015068,2]
[323013775,1713588577985,-500.0,0.00015068,2]
[323013776,1713588578008,-817.96,0.00015068,2]
[323013777,1713588578031,-676.73,0.00015068,2]
[323013778,1713588578054,-1437.68,0.00015068,2]
[323013779,1713588578077,-1114.38,0.00015068,2]
[323013780,1713588578100,-1366.37,0.00015068,2]
[323013781,1713588578124,-718.29,0.00015068,2]
[323013782,1713588578147,-1499.7,0.00015068,2]
[323013783,1713588578169,-500.0,0.00015068,2]
[323013784,1713588578192,-663.51,0.00015068,2]
[323013785,1713588578217,-500.0,0.00015068,2]
[323013786,1713588578240,-940.02,0.00015068,2]
[323013787,1713588578265,-559.11,0.00015068,2]
[323013788,1713588578287,-500.0,0.00015068,2]
[323013789,1713588578309,-500.0,0.00015068,2]
[323013790,1713588578331,-931.41,0.00015068,2]
[323013791,1713588578356,-500.0,0.00015068,2]
[323013792,1713588578378,-1638.53,0.00015068,2]
[323013793,1713588578401,-500.0,0.00015068,2]
[323013794,1713588578423,-622.37,0.00015068,2]
[323013795,1713588578445,-500.0,0.00015068,2]
[323013796,1713588578469,-500.0,0.00015068,2]
[323013797,1713588578491,-961.47,0.00015068,2]
[323013798,1713588578513,-1151.23,0.00015068,2]
[323013799,1713588578536,-1872.42,0.00015068,2]
[323013800,1713588578559,-500.0,0.00015068,2]
[323013801,1713588578582,-500.0,0.00015068,2]
[323013802,1713588578604,-1072.78,0.00015068,2]
[323013803,1713588578627,-967.78,0.00015068,2]
[323013804,1713588578650,-500.0,0.00015068,2]
[323013805,1713588578672,-1292.78,0.00015068,2]
[323013806,1713588578695,-500.0,0.00015068,2]
[323013807,1713588578718,-500.0,0.00015068,2]
[323013808,1713588578741,-500.0,0.00015068,2]
[323013809,1713588578763,-1536.7,0.00015068,2]
[323013810,1713588578786,-500.0,0.00015068,2]
[323013811,1713588578809,-599.31,0.00015068,2]
[323013812,1713588578832,-500.0,0.00015068,2]
[323013813,1713588578855,-2552.47,0.00015068,2]
[323013814,1713588578877,-500.0,0.00015068,2]
[323013815,1713588578900,-500.0,0.00015068,2]
[323013816,1713588578921,-500.0,0.00015068,2]
[323013817,1713588578945,-500.0,0.00015068,2]
[323013818,1713588578968,-1230.31,0.00015068,2]
[323013819,1713588578990,-96.60161272,0.00015068,2]
[323013820,1713588626662,154.67,0.0001611,15]
[323013826,1713588631754,-3087.89853201,0.00013188,2]
[323013827,1713588631812,-2680.44932021,0.00013188,2]
[323013828,1713588631863,-657.25,0.00013188,2]
[323013829,1713588631875,-623.17277901,0.00013188,2]
[323013830,1713588631887,-6271.99276877,0.00013188,2]
[323013831,1713588631896,-415.55420299,0.00014565,2]
[323013832,1713588631932,-1393.05518729,0.00014565,2]
[323013833,1713588631973,-30.37492256,0.00014565,2]
[323013834,1713588631983,-1000.0,0.00014566,2]
[323013835,1713588631993,-1250.0,0.00015,2]
[323013836,1713588632003,-155.56,0.00015058,2]
[323013837,1713588632012,-5000.0,0.00015066,2]
[323013838,1713588632023,-404.63791958,0.00015067,2]
[323013839,1713588632032,-1050.88838728,0.00015068,2]
[323013840,1713588632041,-500.0,0.00015068,2]
[323013841,1713588632051,-500.0,0.00015068,2]
[323013842,1713588632062,-500.0,0.00015068,2]
[323013843,1713588632071,-500.0,0.00015068,2]
[323013844,1713588632080,-500.0,0.00015068,2]
[323013845,1713588632090,-655.97,0.00015068,2]
[323013846,1713588632099,-574.1,0.00015068,2]
[323013847,1713588632108,-532.74,0.00015068,2]
[323013848,1713588632117,-500.0,0.00015068,2]
[323013849,1713588632126,-1048.63,0.00015068,2]
[323013850,1713588632135,-500.0,0.00015068,2]
[323013851,1713588632145,-2509.57,0.00015068,2]
[323013852,1713588632154,-1411.63,0.00015068,2]
[323013853,1713588632164,-500.0,0.00015068,2]
[323013854,1713588632172,-500.0,0.00015068,2]
[323013855,1713588632181,-500.0,0.00015068,2]
[323013856,1713588632190,-500.0,0.00015068,2]
[323013857,1713588632198,-500.0,0.00015068,2]
[323013858,1713588632207,-554.79,0.00015068,2]
[323013859,1713588632216,-859.54,0.00015068,2]
[323013860,1713588632226,-629.90157772,0.00015068,2]
[323013861,1713588632235,-1404.86,0.00015068,2]
[323013862,1713588632244,-500.0,0.00015068,2]
[323013863,1713588632253,-535.94468012,0.00015068,2]
[323013864,1713588632262,-1711.39,0.00015068,2]
[323013865,1713588632273,-613.84,0.00015068,2]
[323013866,1713588632282,-500.0,0.00015068,2]
[323013867,1713588632290,-500.0,0.00015068,2]
[323013868,1713588632300,-769.41,0.00015068,2]
[323013869,1713588632309,-500.0,0.00015068,2]
[323013870,1713588632318,-834.2,0.00015068,2]
[323013871,1713588632327,-500.0,0.00015068,2]
[323013872,1713588632337,-871.68,0.00015068,2]
[323013873,1713588632346,-500.0,0.00015068,2]
[323013874,1713588632355,-500.0,0.00015068,2]
[323013875,1713588632364,-503.51,0.00015068,2]
[323013876,1713588632373,-500.0,0.00015068,2]
[323013877,1713588632382,-500.0,0.00015068,2]
[323013878,1713588632392,-1465.92,0.00015068,2]
[323013879,1713588632401,-671.01,0.00015068,2]
[323013880,1713588632410,-1101.44,0.00015068,2]
[323013881,1713588632419,-500.0,0.00015068,2]
[323013882,1713588632428,-500.0,0.00015068,2]
[323013883,1713588632438,-500.0,0.00015068,2]
[323013884,1713588632447,-500.0,0.00015068,2]
[323013885,1713588632456,-537.17,0.00015068,2]
[323013886,1713588632466,-1011.06,0.00015068,2]
[323013887,1713588632475,-846.88,0.00015068,2]
[323013888,1713588632484,-500.0,0.00015068,2]
[323013889,1713588632494,-1826.95,0.00015068,2]
[323013890,1713588632503,-500.0,0.00015068,2]
[323013891,1713588632512,-1741.13,0.00015068,2]
[323013892,1713588632522,-702.26,0.00015068,2]
[323013893,1713588632532,-500.0,0.00015068,2]
[323013894,1713588632542,-500.0,0.00015068,2]
[323013895,1713588632551,-500.0,0.00015068,2]
[323013896,1713588632560,-574.52,0.00015068,2]
[323013897,1713588632569,-500.0,0.00015068,2]
[323013898,1713588632579,-337.85968568,0.00015068,2]
[323013899,1713588632588,-500.0,0.00015068,2]
[323013900,1713588632597,-500.0,0.00015068,2]
[323013901,1713588632606,-500.0,0.00015068,2]
[323013902,1713588632614,-500.0,0.00015068,2]
[323013903,1713588632623,-530.62068134,0.00015068,2]
[323013904,1713588632632,-500.0,0.00015068,2]
[323013905,1713588632641,-500.0,0.00015068,2]
[323013906,1713588632650,-500.0,0.00015068,2]
[323013907,1713588632659,-646.85,0.00015068,2]
[323013908,1713588632670,-512.78,0.00015068,2]
[323013909,1713588632680,-500.0,0.00015068,2]
[323013910,1713588632689,-500.0,0.00015068,2]
[323013911,1713588632698,-500.0,0.00015068,2]
[323013912,1713588632707,-500.0,0.00015068,2]
[323013913,1713588632716,-617.04,0.00015068,2]
[323013914,1713588632725,-500.0,0.00015068,2]
[323013915,1713588632735,-500.0,0.00015068,2]
[323013916,1713588632746,-500.0,0.00015068,2]
[323013917,1713588632756,-500.0,0.00015068,2]
[323013918,1713588632766,-927.48,0.00015068,2]
[323013919,1713588632776,-500.0,0.00015068,2]
[323013920,1713588632785,-500.0,0.00015068,2]
[323013921,1713588632794,-500.0,0.00015068,2]
[323013922,1713588632805,-500.0,0.00015068,2]
[323013923,1713588632814,-500.0,0.00015068,2]
[323013924,1713588632824,-666.66,0.00015068,2]
[323013925,1713588632834,-500.0,0.00015068,2]
[323013926,1713588632843,-6414.61,0.00015068,2]
[323013927,1713588632853,-500.0,0.00015068,2]
[323013928,1713588632862,-500.0,0.00015068,2]
[323013929,1713588632871,-616.68,0.00015068,2]
[323013930,1713588632880,-541.17,0.00015068,2]
[323013931,1713588632890,-500.0,0.00015068,2]
[323013932,1713588632899,-500.0,0.00015068,2]
[323013933,1713588632909,-500.0,0.00015068,2]
[323013934,1713588632919,-500.0,0.00015068,2]
[323013935,1713588632928,-1044.56,0.00015068,2]
[323013936,1713588632938,-500.0,0.00015068,2]
[323013937,1713588632947,-1372.21,0.00015068,2]
[323013938,1713588632956,-2524.03,0.00015068,2]
[323013939,1713588632966,-500.0,0.00015068,2]
[323013940,1713588632975,-774.7,0.00015068,2]
[323013941,1713588632987,-2370.64,0.00015068,2]
[323013942,1713588632996,-500.0,0.00015068,2]
[323013943,1713588633006,-500.0,0.00015068,2]
[323013944,1713588633016,-500.0,0.00015068,2]
[323013945,1713588633026,-571.18,0.00015068,2]
[323013946,1713588633035,-500.0,0.00015068,2]
[323013947,1713588633044,-500.0,0.00015068,2]
[323013948,1713588633053,-567.98,0.00015068,2]
[323013949,1713588633063,-825.2,0.00015068,2]
[323013950,1713588633073,-500.0,0.00015068,2]
[323013951,1713588633082,-1537.73,0.00015068,2]
[323013952,1713588633091,-500.0,0.00015068,2]
[323013953,1713588633100,-614.24,0.00015068,2]
[323013954,1713588633109,-500.0,0.00015068,2]
[323013955,1713588633119,-500.0,0.00015068,2]
[323013956,1713588633128,-14693.94,0.00015068,2]
[323013957,1713588633137,-500.0,0.00015068,2]
[323013958,1713588633148,-431.57231989,0.00015068,2]
[323013959,1713588633158,-4816.56,0.00015068,2]
[323013960,1713588633167,-500.0,0.00015068,2]
[323013961,1713588633176,-500.0,0.00015068,2]
[323013962,1713588633185,-500.0,0.00015068,2]
[323013963,1713588633195,-500.0,0.00015068,2]
[323013964,1713588633204,-500.0,0.00015068,2]
[323013965,1713588633213,-2696.88,0.00015068,2]
[323013966,1713588633222,-3888.82,0.00015068,2]
[323013967,1713588633232,-500.0,0.00015068,2]
[323013968,1713588633241,-500.0,0.00015068,2]
[323013969,1713588633251,-500.0,0.00015068,2]
[323013970,1713588633260,-1123.19,0.00015068,2]
[323013971,1713588633270,-500.0,0.00015068,2]
[323013972,1713588633280,-500.0,0.00015068,2]
[323013973,1713588633289,-500.0,0.00015068,2]
[323013974,1713588633298,-1350.68,0.00015068,2]
[323013975,1713588633308,-784.05,0.00015068,2]
[323013976,1713588633317,-500.0,0.00015068,2]
[323013977,1713588633327,-500.0,0.00015068,2]
[323013978,1713588633336,-500.0,0.00015068,2]
[323013979,1713588633345,-500.0,0.00015068,2]
[323013980,1713588633354,-500.0,0.00015068,2]
[323013981,1713588633363,-534.82,0.00015068,2]
[323013982,1713588633373,-18055.72,0.00015068,2]
[323013983,1713588633382,-1759.09,0.00015068,2]
[323013984,1713588633392,-500.0,0.00015068,2]
[323013985,1713588633401,-2027.24,0.00015068,2]
[323013986,1713588633410,-500.0,0.00015068,2]
[323013987,1713588633419,-500.0,0.00015068,2]
[323013988,1713588633428,-887.98,0.00015068,2]
[323013989,1713588633437,-548.29,0.00015068,2]
[323013990,1713588633446,-500.0,0.00015068,2]
[323013991,1713588633455,-500.0,0.00015068,2]
[323013992,1713588633465,-577.34,0.00015068,2]
[323013993,1713588633474,-734.59,0.00015068,2]
[323013994,1713588633483,-500.0,0.00015068,2]
[323013995,1713588633492,-500.0,0.00015068,2]
[323013996,1713588633502,-500.0,0.00015068,2]
[323013997,1713588633511,-1022.32,0.00015068,2]
[323013998,1713588633524,-1603.53,0.00015068,2]
[323013999,1713588633534,-500.0,0.00015068,2]
[323014000,1713588633544,-515.17,0.00015068,2]
[323014001,1713588633553,-500.0,0.00015068,2]
[323014002,1713588633562,-437.97256846,0.00015068,2]
[323014003,1713588633571,-500.0,0.00015068,2]
[323014004,1713588633581,-500.0,0.00015068,2]
[323014005,1713588633590,-500.0,0.00015068,2]
[323014006,1713588633599,-500.0,0.00015068,2]
[323014007,1713588633608,-1414.4,0.00015068,2]
[323014008,1713588633617,-500.0,0.00015068,2]
[323014009,1713588633627,-1332.1,0.00015068,2]
[323014010,1713588633636,-500.0,0.00015068,2]
[323014011,1713588633645,-4574.8,0.00015068,2]
[323014012,1713588633655,-500.0,0.00015068,2]
[323014013,1713588633665,-500.0,0.00015068,2]
[323014014,1713588633674,-657.47,0.00015068,2]
[323014015,1713588633683,-1191.22,0.00015068,2]
[323014016,1713588633693,-1704.16,0.00015068,2]
[323014017,1713588633702,-8792.97,0.00015068,2]
[323014018,1713588633711,-1011.84,0.00015068,2]
[323014019,1713588633721,-500.0,0.00015068,2]
[323014020,1713588633730,-3372.23,0.00015068,2]
[323014021,1713588633739,-500.0,0.00015068,2]
[323014022,1713588633748,-1607.71,0.00015068,2]
[323014023,1713588633757,-500.0,0.00015068,2]
[323014024,1713588633767,-500.0,0.00015068,2]
[323014025,1713588633776,-788.37,0.00015068,2]
[323014026,1713588633785,-563.81,0.00015068,2]
[323014027,1713588633795,-500.0,0.00015068,2]
[323014028,1713588633805,-500.0,0.00015068,2]
[323014029,1713588633814,-500.0,0.00015068,2]
[323014030,1713588633823,-1224.29,0.00015068,2]
[323014031,1713588633833,-500.0,0.00015068,2]
[323014032,1713588633842,-500.0,0.00015068,2]
[323014033,1713588633851,-500.0,0.00015068,2]
[323014034,1713588633860,-576.28,0.00015068,2]
[323014035,1713588633869,-500.0,0.00015068,2]
[323014036,1713588633878,-778.44,0.00015068,2]
[323014037,1713588633887,-795.09,0.00015068,2]
[323014038,1713588633897,-485.63529171,0.00015068,2]
[323014039,1713588634701,-537.20470829,0.00015068,2]
[323014040,1713588634711,-500.0,0.00015068,2]
[323014041,1713588634721,-560.95,0.00015068,2]
[323014042,1713588634730,-500.0,0.00015068,2]
[323014043,1713588634740,-500.0,0.00015068,2]
[323014044,1713588634749,-276.71764275,0.00015068,2]
[323014045,1713588634790,-223.28235725,0.00015068,2]
[323014046,1713588634800,-500.0,0.00015068,2]
[323014047,1713588634809,-129.66078754,0.00015068,2]
[323014048,1713588634821,-506.56921246,0.00015068,2]
[323014049,1713588634831,-199.19078754,0.00015068,2]
[323014050,1713588634842,-1801.53921246,0.00015068,2]
[323014051,1713588634851,-500.0,0.00015068,2]
[323014052,1713588634860,-500.0,0.00015068,2]
[323014053,1713588634870,-293.30705544,0.00015068,2]
[323014067,1713588637832,-1229.7413409,0.00015068,2]
[323014068,1713588637844,-136.09160366,0.00015068,2]
[323014069,1713588637854,-500.0,0.00015068,2]
[323014070,1713588637864,-500.0,0.00015068,2]
[323014071,1713588637874,-1132.55,0.00015068,2]
[323014072,1713588637885,-500.0,0.00015068,2]
[323014073,1713588637895,-262.44229072,0.00015068,2]
[323014074,1713588638155,-404.31770928,0.00015068,2]
[323014075,1713588638166,-500.0,0.00015068,2]
[323014076,1713588638176,-500.0,0.00015068,2]
[323014077,1713588638186,-500.0,0.00015068,2]
[323014078,1713588638196,-500.0,0.00015068,2]
[323014079,1713588638206,-693.53,0.00015068,2]
[323014080,1713588638651,-2705.35,0.00015068,2]
[323014081,1713588638661,-500.0,0.00015068,2]
[323014082,1713588638670,-500.0,0.00015068,2]
[323014083,1713588638680,-500.0,0.00015068,2]
[323014084,1713588638689,-500.0,0.00015068,2]
[323014086,1713588638699,-500.0,0.00015068,2]
[323014088,1713588638708,-706.83,0.00015068,2]
[323014090,1713588638717,-1861.36,0.00015068,2]
[323014093,1713588638727,-500.0,0.00015068,2]
[323014095,1713588638737,-500.0,0.00015068,2]
[323014097,1713588638746,-704.52,0.00015068,2]
[323014098,1713588638756,-500.0,0.00015068,2]
[323014099,1713588638765,-500.0,0.00015068,2]
[323014100,1713588638776,-500.0,0.00015068,2]
[323014101,1713588638785,-500.0,0.00015068,2]
[323014102,1713588638795,-761.9,0.00015068,2]
[323014103,1713588638804,-500.0,0.00015068,2]
[323014104,1713588638814,-500.0,0.00015068,2]
[323014105,1713588638824,-500.0,0.00015068,2]
[323014106,1713588638833,-150.0,0.00015068,2]
[323014107,1713588638842,-500.0,0.00015068,2]
[323014108,1713588638852,-500.0,0.00015068,2]
[323014109,1713588638861,-2463.97,0.00015068,2]
[323014110,1713588638870,-1239.26,0.00015068,2]
[323014111,1713588638880,-1636.23,0.00015068,2]
[323014112,1713588638889,-689.11,0.00015068,2]
[323014113,1713588638898,-500.0,0.00015068,2]
[323014114,1713588638907,-767.27,0.00015068,2]
[323014115,1713588638917,-500.0,0.00015068,2]
[323014116,1713588638926,-3406.04,0.00015068,2]
[323014117,1713588638935,-500.0,0.00015068,2]
[323014118,1713588638944,-500.0,0.00015068,2]
[323014119,1713588638954,-944.88,0.00015068,2]
[323014120,1713588638963,-933.28,0.00015068,2]
[323014121,1713588638973,-500.0,0.00015068,2]
[323014122,1713588638982,-1027.12,0.00015068,2]
[323014123,1713588638991,-500.0,0.00015068,2]
[323014124,1713588639001,-500.0,0.00015068,2]
[323014125,1713588639013,-500.0,0.00015068,2]
[323014126,1713588639023,-500.0,0.00015068,2]
[323014127,1713588639033,-2475.01,0.00015068,2]
[323014128,1713588639043,-1302.01,0.00015068,2]
[323014129,1713588639054,-1891.86,0.00015068,2]
[323014130,1713588639067,-4885.33,0.00015068,2]
[323014131,1713588639077,-1301.06,0.00015068,2]
[323014132,1713588639086,-500.0,0.00015068,2]
[323014133,1713588639096,-500.0,0.00015068,2]
[323014134,1713588639106,-500.0,0.00015068,2]
[323014135,1713588639117,-500.0,0.00015068,2]
[323014136,1713588639127,-500.0,0.00015068,2]
[323014137,1713588639137,-978.28,0.00015068,2]
[323014138,1713588639147,-500.0,0.00015068,2]
[323014139,1713588639157,-523.46,0.00015068,2]
[323014140,1713588639167,-2758.24,0.00015068,2]
[323014141,1713588639177,-841.07,0.00015068,2]
[323014142,1713588639186,-500.0,0.00015068,2]
[323014143,1713588639196,-2068.88,0.00015068,2]
[323014144,1713588639206,-1979.38,0.00015068,2]
[323014145,1713588639216,-500.0,0.00015068,2]
[323014146,1713588639225,-1429.65,0.00015068,2]
[323014147,1713588639235,-500.0,0.00015068,2]
[323014148,1713588639245,-500.0,0.00015068,2]
[323014149,1713588639254,-650.58,0.00015068,2]
[323014150,1713588639264,-748.44,0.00015068,2]
[323014151,1713588639277,-999.57,0.00015068,2]
[323014152,1713588639286,-504.72399977,0.00015068,2]
[323014153,1713588639296,-1449.07,0.00015068,2]
[323014154,1713588639306,-500.0,0.00015068,2]
[323014155,1713588639315,-1764.51,0.00015068,2]
[323014156,1713588639325,-500.0,0.00015068,2]
[323014157,1713588639335,-500.0,0.00015068,2]
[323014158,1713588639344,-500.0,0.00015068,2]
[323014159,1713588639354,-500.0,0.00015068,2]
[323014160,1713588639364,-500.0,0.00015068,2]
[323014161,1713588639373,-4042.68,0.00015068,2]
[323014162,1713588639383,-1520.54,0.00015068,2]
[323014163,1713588639393,-531.14,0.00015068,2]
[323014164,1713588639402,-500.0,0.00015068,2]
[323014165,1713588639412,-2487.43,0.00015068,2]
[323014166,1713588639422,-1293.11,0.00015068,2]
[323014167,1713588639431,-1312.4,0.00015068,2]
[323014168,1713588639441,-500.0,0.00015068,2]
[323014169,1713588639451,-500.0,0.00015068,2]
[323014170,1713588639461,-506.79,0.00015068,2]
[323014171,1713588639471,-500.0,0.00015068,2]
[323014172,1713588639481,-374.55986881,0.00015068,2]
[323014173,1713588639490,-500.0,0.00015068,2]
[323014174,1713588639500,-500.0,0.00015068,2]
[323014175,1713588639510,-500.0,0.00015068,2]
[323014176,1713588639521,-500.0,0.00015068,2]
[323014177,1713588639531,-500.0,0.00015068,2]
[323014178,1713588639541,-500.0,0.00015068,2]
[323014179,1713588639550,-500.0,0.00015068,2]
[323014180,1713588639561,-631.89,0.00015068,2]
[323014181,1713588639570,-597.84,0.00015068,2]
[323014182,1713588639580,-500.0,0.00015068,2]
[323014183,1713588639590,-500.0,0.00015068,2]
[323014184,1713588639600,-500.0,0.00015068,2]
[323014185,1713588639609,-500.0,0.00015068,2]
[323014186,1713588639619,-500.0,0.00015068,2]
[323014187,1713588639629,-726.25,0.00015068,2]
[323014188,1713588639639,-824.45,0.00015068,2]
[323014189,1713588639648,-500.0,0.00015068,2]
[323014190,1713588639658,-525.57,0.00015068,2]
[323014191,1713588639668,-533.0,0.00015068,2]
[323014192,1713588639678,-2547.22,0.00015068,2]
[323014193,1713588639689,-634.12,0.00015068,2]
[323014194,1713588639698,-500.0,0.00015068,2]
[323014195,1713588639708,-500.0,0.00015068,2]
[323014196,1713588639718,-39977.16572845,0.00015068,2]
[323014197,1713588639727,-500.0,0.00015068,2]
[323014198,1713588639737,-500.0,0.00015068,2]
[323014199,1713588639747,-503.92,0.00015068,2]
[323014200,1713588639757,-535.17,0.00015068,2]
[323014201,1713588639766,-799.95,0.00015068,2]
[323014202,1713588639776,-500.0,0.00015068,2]
[323014203,1713588639785,-500.0,0.00015068,2]
[323014204,1713588639795,-2390.16,0.00015068,2]
[323014205,1713588639805,-500.0,0.00015068,2]
[323014206,1713588639815,-500.0,0.00015068,2]
[323014207,1713588639825,-826.24,0.00015068,2]
[323014208,1713588639835,-1534.31,0.00015068,2]
[323014209,1713588639844,-1606.26,0.00015068,2]
[323014210,1713588639854,-500.0,0.00015068,2]
[323014211,1713588639863,-260.84049601,0.00015068,2]
[323014212,1713588639873,-1600.8,0.00015068,2]
[323014213,1713588639882,-500.0,0.00015068,2]
[323014214,1713588639892,-779.84,0.00015068,2]
[323014215,1713588639902,-500.0,0.00015068,2]
[323014216,1713588639910,-500.0,0.00015068,2]
[323014217,1713588639920,-706.57,0.00015068,2]
[323014218,1713588639929,-3157.99,0.00015068,2]
[323014219,1713588639938,-666.02,0.00015068,2]
[323014220,1713588639948,-500.0,0.00015068,2]
[323014221,1713588639957,-3344.05,0.00015068,2]
[323014222,1713588639966,-1191.1,0.00015068,2]
[323014223,1713588639976,-2282.33,0.00015068,2]
[323014224,1713588639985,-3353.16,0.00015068,2]
[323014225,1713588639995,-596.76,0.00015068,2]
[323014226,1713588640005,-500.0,0.00015068,2]
[323014227,1713588640014,-500.0,0.00015068,2]
[323014228,1713588640026,-1040.35697366,0.00015068,2]